Cogmind - Beta 14 @@@ ROGUE MODE // 2024.11.12 @ 18:16:23 Player: N.W.L Result: Destroyed by Y-45 Defender with Beam Rifle Performance ------------- Evolutions (1) 500 Regions Visited (3) 600 Robots Destroyed (7) 35 Value Destroyed (103) 103 Prototype IDs (5) 100 Alien Tech Used (0) 0 Bonus (200) 200 TOTAL SCORE: 1538 Bonus ------- Pacifist 200 Cogmind --------- Core Integrity 0/400 Matter 225/300 Energy 47/100 System Corruption 0% Temperature Cool (9) Movement Core (100) Ox1 Location -9/Storage Parts ------- > --- POWER (1) -------- (None) > --- PROPULSION (2) --- (None) > --- UTILITY (4) ------ Hacking Suite Hacking Suite Hacking Suite Drone Bay (2/2) > --- WEAPON (2) ------- (None) > --- INVENTORY (5) ---- Weight Redist. System Drone Bay (2/2) EM Pulse Gun Improved Assault Rifle Peak State ------------ > --- POWER ------------ (None) > --- PROPULSION ------- (None) > --- UTILITY ---------- Hacking Suite Hacking Suite Hacking Suite Drone Bay > --- WEAPON ----------- EM Pulse Gun Improved Assault Rifle > --- INVENTORY -------- Weight Redist. System Drone Bay [Rating: 18] Favorites ----------- Power None Propulsion None Utility Hacking Suite Device Drone Bay Hackware Hacking Suite Weapon Light Cannon Energy Gun EM Pulse Gun Energy Cannon Advanced Beam Cannon Ballistic Gun Improved Assault Rifle Ballistic Cannon Light Cannon Build | -11 -10 -9 -9 ------- Run | Yrd Mat Mat Sto Slots Evolved 2 | . . 2 . Power . | . . . . Propulsion . | . . . . Utility 2 | . . 2 . Weapon . | . . . . Parts Attached 13 | 2 1 7 3 Power . | . . . . Engine . | . . . . Core . | . . . . Reactor . | . . . . Propulsion . | . . . . Treads . | . . . . Leg . | . . . . Wheel . | . . . . Hover . | . . . . Flight . | . . . . Utility 5 | . . 4 1 Device 1 | . . . 1 Storage . | . . . . Processor . | . . . . Hackware 4 | . . 4 . Protection . | . . . . Artifact . | . . . . Weapon 8 | 2 1 3 2 Energy Gun 2 | 1 . . 1 Energy Cannon 1 | . . 1 . Ballistic Gun 4 | 1 . 2 1 Ballistic Cannon 1 | . 1 . . Launcher . | . . . . Special Weapon . | . . . . Impact Weapon . | . . . . Slashing Weapon . | . . . . Piercing Weapon . | . . . . Special Melee Weapon . | . . . . Unidentified Prototypes 2 | . . 2 . Parts Lost 2 | . . . 2 Power . | . . . . Propulsion . | . . . . Utility 1 | . . . 1 Weapon 1 | . . . 1 Highest Loss Streak 2 | . . . 2 To Critical Strikes . | . . . . Average Slot Usage (%) 45 | . 9 49 49 Device 1 | . . . 2 Hackware 34 | . . 37 38 Energy Gun 1 | . . . 2 Ballistic Gun 1 | . . . 1 Ballistic Cannon 7 | . 9 11 4 Peak Build Rating 18 | 2 1 16 18 Average Rating 10 | . . 11 13 On Entrance 3 | . . 1 13 Naked Turns 5 | . 5 . . Heaviest Build 6 | 4 3 5 6 Greatest Support 3 | 3 3 3 3 Greatest Overweight (x) 1 | 1 . 1 1 Average Overweight (x) . | . . . . Largest Inventory Capacity 5 | 5 5 5 5 Average Capacity 5 | 5 5 5 5 Most Carried 5 | 4 4 5 5 Average Carried 4 | 1 4 4 4 Final Capacity 5 | 5 5 5 5 Final Carried 5 | 4 4 5 4 Class Distribution -------------------- 78% | Hacker-Mutant 21% | Mutant Dominant Class ---------------- Mutant | -10/Materials Hacker-Mutant | -9/Materials Hacker-Mutant | -9/Storage Resources | -11 -10 -9 -9 ----------- Run | Yrd Mat Mat Sto Matter Collected 335 | 65 . 40 230 Remotely . | . . . . Salvage Created 210 | . . 39 171 Parts 12 | . . 2 10 Haulers Intercepted 1 | . . 1 . Recyclers Shooed . | . . . . Parts Field Recycled . | . . . . Retrieved Matter . | . . . . Parts Self-Destructed . | . . . . Prevented . | . . . . Kills | -11 -10 -9 -9 ------- Run | Yrd Mat Mat Sto Combat Hostiles Destroyed 5 | . . . 5 Guns 5 | . . . 5 Classes Destroyed 4 | . . 1 3 Hauler 1 | . . 1 . Recycler 1 | . . . 1 Swarmer 4 | . . . 4 Sentry 1 | . . . 1 Best Kill Streak 5 | . . 1 5 Combat Bots Only 5 | . . . 5 Max Kills in Single Turn 1 | . . 1 1 Gunslinging . | . . . . Exploded . | . . . . Melee . | . . . . Uniques/NPCs Destroyed . | . . . . Combat | -11 -10 -9 -9 -------- Run | Yrd Mat Mat Sto Hostile Shots Fired 80 | . . 28 52 Missed 32 | . . 13 19 Damage Taken 665 | . . 212 453 Core 408 | . . 106 302 Absorbed by Shields . | . . . . Core Remaining (%) 100 | 100 100 . . Volleys Fired 26 | . 1 6 19 Largest 2 | . 1 2 2 Hottest 63 | . 35 55 63 Shots Fired 38 | . 1 10 27 Gun 20 | . . 4 16 Cannon 18 | . 1 6 11 Launcher . | . . . . Special . | . . . . Kinetic 30 | . 1 10 19 Thermal . | . . . . Explosive . | . . . . Electromagnetic 8 | . . . 8 Robot Hit Streak 5 | . . 2 5 Robot Miss Streak 3 | . 1 3 2 Penetration Max . | . . . . Secondary Targets 1 | . . . 1 Max Gunslinging Chain 1 | . . . 1 Shots Hit Robots 16 | . . 5 11 Core Hits 8 | . . 1 7 Critical Kills . | . . . . Critical Parts Destroyed . | . . . . Critical Strikes 1 | . . 1 . Blast 1 | . . 1 . Melee Attacks . | . . . . Impact . | . . . . Slashing . | . . . . Piercing . | . . . . Sneak Attacks . | . . . . Combat Hostiles . | . . . . Follow-up Attacks . | . . . . Damage Inflicted 242 | . . 78 164 Guns 165 | . . 32 133 Cannons 56 | . . 36 20 Explosions . | . . . . Melee . | . . . . Ramming 21 | . . 10 11 Kinetic 176 | . . 68 108 Thermal . | . . . . Explosive . | . . . . Electromagnetic 45 | . . . 45 Impact . | . . . . Slashing . | . . . . Piercing . | . . . . Highest Corruption . | . . . . Average Corruption . | . . . . Corruption Purged . | . . . . Corruption Blocked . | . . . . Overload Shots . | . . . . Overflow Damage . | . . . . Projectiles . | . . . . Explosions . | . . . . Melee . | . . . . Knockbacks . | . . . . Impact . | . . . . Kinetic . | . . . . Secondary . | . . . . Self-Inflicted Damage 10 | . . 5 5 Shots . | . . . . Rammed 4 | . . 1 3 Targets Rammed 4 | . . 1 3 Kicked . | . . . . Crushed . | . . . . Highest Temperature 14 | . . 8 14 Average Temperature 8 | . . 8 8 Received Heat Transfer 207 | . . 123 84 Siege Activations . | . . . . Robots Corrupted . | . . . . Combat Hostiles . | . . . . Parts Fried . | . . . . Impact Corruptions . | . . . . Robots Melted . | . . . . Combat Hostiles . | . . . . Parts Melted . | . . . . Heat Transferred . | . . . . Parts Sabotaged . | . . . . Parts Stolen . | . . . . Parts Stripped . | . . . . Power Chain Reactions . | . . . . Alert | -11 -10 -9 -9 ------- Run | Yrd Mat Mat Sto Peak Influence 349 | . 15 245 349 Initial 103 | . . 5 103 Average 119 | . 6 103 177 Maximum Alert Level 1 | . . 1 1 Low Security (%) 84 | 100 100 89 72 Level 1 15 | . . 10 27 Level 2 . | . . . . Level 3 . | . . . . Level 4 . | . . . . Level 5 . | . . . . High Security . | . . . . Max Security . | . . . . Squads Dispatched 4 | . . 3 1 Investigation 2 | . . 1 1 Extermination . | . . . . Reinforcement 2 | . . 2 . Assault . | . . . . Garrison . | . . . . Intercept . | . . . . Searches Triggered . | . . . . Construction Impeded . | . . . . Haulers Reinforced . | . . . . Active Scanning Responses . | . . . . Cargo Convoy Interrupts . | . . . . Stealth | -11 -10 -9 -9 --------- Run | Yrd Mat Mat Sto Distress Signals 2 | . . 1 1 Communications Jammed . | . . . . Distress Signals . | . . . . Times Spotted 29 | . 1 13 15 Peak Tracking Total 13 | . 1 8 13 Tactical Retreats 5 | . . 4 1 Traps | -11 -10 -9 -9 ------- Run | Yrd Mat Mat Sto Traps Triggered 2 | . . . 2 Indirectly . | . . . . Trap Hack Attempts . | . . . . Triggered . | . . . . Disarmed . | . . . . Reprogrammed . | . . . . Reused . | . . . . Traps Extracted . | . . . . Installed . | . . . . Triggered . | . . . . Machines | -11 -10 -9 -9 ---------- Run | Yrd Mat Mat Sto Machines Disabled 1 | . . . 1 Max in Single Turn 1 | . . . 1 Machines Repaired . | . . . . Machines Dismantled . | . . . . Machines Sabotaged . | . . . . Overloaded Fab Kills . | . . . . Hacking | -11 -10 -9 -9 --------- Run | Yrd Mat Mat Sto Machines Accessed 6 | . . 2 4 Terminals 5 | . . 1 4 Fabricators . | . . . . Repair Stations . | . . . . Recycling Units . | . . . . Scanalyzers 1 | . . 1 . Garrison Access . | . . . . Total Hacks 16 | . . 8 8 Successful 14 | . . 8 6 Failed 2 | . . . 2 Catastrophic . | . . . . Database Lockouts . | . . . . Manual 8 | . . 4 4 Terminals 15 | . . 7 8 Fabricators . | . . . . Repair Stations . | . . . . Recycling Units . | . . . . Scanalyzers 1 | . . 1 . Garrison Access . | . . . . Terminal Hacks 12 | . . 6 6 Record 1 | . . 1 . Prototype ID Bank 1 | . . 1 . Open Door 3 | . . . 3 Level Access Points 1 | . . 1 . Branch Access Points 2 | . . 1 1 Locate Traps 1 | . . . 1 Patrol Status 1 | . . . 1 Recall Investigation 2 | . . 2 . Fabricator Hacks . | . . . . Repair Station Hacks . | . . . . Recycling Unit Hacks . | . . . . Scanalyzer . | . . . . Garrison Access Hacks . | . . . . Unauthorized Hacks 2 | . . 2 . Terminals 1 | . . 1 . Disrupt 1 | . . 1 . Fabricators . | . . . . Repair Stations . | . . . . Recycling Units . | . . . . Scanalyzers 1 | . . 1 . Extract 1 | . . 1 . Garrison Access . | . . . . Data Cores Recovered . | . . . . Used . | . . . . Hacking Detections 4 | . . 1 3 Full Trace Events 1 | . . . 1 Feedback Events . | . . . . Feedback Blocked . | . . . . Robot Schematics Acquired . | . . . . Robots Built . | . . . . Authchips . | . . . . Time . | . . . . Total Robot Build Rating . | . . . . Part Schematics Acquired 14 | . . 14 . Parts Built . | . . . . Authchips . | . . . . Time . | . . . . Total Part Build Rating . | . . . . Parts Repaired . | . . . . Time . | . . . . Parts Recycled . | . . . . Recycled Matter . | . . . . Retrieved Matter . | . . . . Retrieved Components . | . . . . Parts Scanalyzed . | . . . . Part Schematics Acquired . | . . . . Parts Damaged . | . . . . Bothacking | -11 -10 -9 -9 ------------ Run | Yrd Mat Mat Sto Used RIF Installer . | . . . . Robots Hacked . | . . . . Non-combat . | . . . . Combat . | . . . . Robot Hacks Applied . | . . . . Relay Couplers Released . | . . . . Fabnet Peak Effective % . | . . . . Robots Rewired . | . . . . Allies Hacked . | . . . . Hacks Repelled . | . . . . Allies | -11 -10 -9 -9 -------- Run | Yrd Mat Mat Sto Total Allies . | . . . . Largest Group . | . . . . Highest-Rated Group . | . . . . Highest-Rated Ally . | . . . . Total Orders . | . . . . Ally Attacks . | . . . . Total Damage . | . . . . Kills . | . . . . Allies Corrupted . | . . . . Allies Melted . | . . . . Intel | -11 -10 -9 -9 ------- Run | Yrd Mat Mat Sto Robot Analysis Total . | . . . . Derelict Logs Recovered . | . . . . Drone Launches . | . . . . Drone Recoveries . | . . . . Exploration | -11 -10 -9 -9 ------------- Run | Yrd Mat Mat Sto Turns Passed 342 | 24 32 138 148 Spaces Moved 444 | 35 57 177 175 Core 444 | 35 57 177 175 Treads . | . . . . Legs . | . . . . Wheels . | . . . . Hover . | . . . . Flight . | . . . . Fastest Speed 50 | 50 50 50 50 Average Speed 51 | 52 50 50 52 Slowest Speed 100 | 100 50 100 100 Overloaded Moves . | . . . . Propulsion Burnouts . | . . . . Robots Hopped . | . . . . Cave-ins Triggered . | . . . . Exploration Rate (%) 23 | 4 22 29 38 Regions Visited 3 Branch Regions 1 Pre-discovered Areas 1 | . . . 1 Known Exits Taken 1 | . . 1 . Unknown Exits Taken 2 | 1 1 . . Scrap Searched . | . . . . Spaces Dug . | . . . . Terrain Destroyed . | . . . . Melee . | . . . . Projectile . | . . . . AOE . | . . . . Terrain Rammed . | . . . . Walls Destroyed . | . . . . Machines Disabled . | . . . . Actions | -11 -10 -9 -9 --------- Run | Yrd Mat Mat Sto Total 519 | 40 58 214 207 Wait 20 | . . 19 1 Move 442 | 34 56 177 175 Hop . | . . . . Pick Up 5 | 2 . 1 2 Fast Attach 9 | 2 1 6 . Attach 4 | . . 1 3 Detach 6 | 2 . 2 2 Swap . | . . . . Drop 4 | . . 2 2 Fire 26 | . 1 6 19 Melee . | . . . . Ram 3 | . . . 3 Kick . | . . . . Crush . | . . . . Escape Stasis . | . . . . Rewire . | . . . . Trap . | . . . . Miscellaneous . | . . . . Route ------- -11/Scrapyard -10/Materials (discovered 2 exits: *Mat / [*Min]) -9/Materials (discovered 7 exits: Mat x3 / Min x2 / *Sto x2) -9/Storage (discovered 1 exit: Rec) History --------- Turn | Location | Event 3 | -11/Scrapyard | Discovered new exit (range 15) 25 | -11/Scrapyard | Entered Materials 48 | -10/Materials | Discovered new exit (range 16) 48 | -10/Materials | Discovered new exit (range 5) 57 | -10/Materials | Entered another Materials area 57 | -9/Materials | Evolved 2 slots: Utility x2 181 | -9/Materials | Discovered new exit (range 10) 182 | -9/Materials | Identified exit to Mines 182 | -9/Materials | Identified exit to Storage 182 | -9/Materials | Identified exit to Materials 195 | -9/Materials | Entered Storage 277 | -9/Storage | Core integrity fell below 50% 296 | -9/Storage | Identified exit to Recycling 306 | -9/Storage | Core integrity fell below 20% 309 | -9/Storage | Learned location of Armory (-4) 343 | -9/Storage | Destroyed by Y-45 Defender with Beam Rifle Last Messages --------------- 00309_ NQ-OVE(g) slips back into hiding. 00312_ S-10 Pest destroyed. 00313_ K-01 Serf collects debris. 00314_ S-10 Pest destroyed. 00315_ R-06 Scavenger collects Flight Unit. 00317_ S-10 Pest destroyed. 00317_ Switching to secondary target: S-10 Pest. 00318_ K-01 Serf collects debris. 00326_ R-06 Scavenger destroyed. 00326_ K-01 Serf collects debris. 00326_ Y-45 Defender destroyed. 00329_ K-01 Serf collects debris. 00332_ S-10 Pest destroyed. 00333_ K-01 Serf collects debris. 00337_ Acquired 90 matter. 00337_ K-01 Serf collects debris. 00338_ Acquired 19 matter. 00340_ W-16 Scout sends out distress signal. 00340_ K-01 Serf destroyed. 00341_ Acquired 21 matter. Map ----- +----------------------------------------------------+ | ??????????# ##+#####+###########?"" | | ??????????## ## ???# ???????????? | | ???????????# #? ???# ?????????? | | ?????####### ## ??#""" #???????? | | ?????# ^ ## ??#""" #???????? | | ?????#^ ^% ## ?#""" #??????? | | ?????# ^= ## ?# ##??????? | | ?????# = ################???????? | | ?????# ^^ #??????????????????????? | | ?????# = #??????????????????????? | | ?????# wY#??????????????????????? | | ?????# w #??????????????????????? | | ?????# #??????????????????????? | | ?????# #??????????????????????? | | ?????#### Y#??????????????????????? | | ????????# #####??????????????????? | | ????????# +??????????????????? | | ????????# ####+###???????????? | | ????????# ??? | | ????#####=% ??? | | ????# = #%![ ??? | | | ????#= =+%= ?? | | ????# =*#![ a ?? | | ????#####* m "??? | | ????????# "??? | | ????????# @ "??? | | ????????# ??? ### | | ????????# #####+### ??? ???? | | ????????# #????? ????? ??????????? | | ????????#Y #???????#???????????????? | | ????????# #???????????????????????? | | ????????# #???????????????????????? | | ????????# #???????????????????????? | | ????????+ #???????????????????????? | | ????????# #???????????????????????? | | ????????# #???????????????????????? | | ????????# #???????????????????????? | | ????????# ????????????????????????? | | ????????# ????????????????????????? | | ????????# ????????????????????????? | | ????????????????????????????????????? | | ????????????????????????????????????? | | ????????????????????????????????????? | | ????????????????????????????????????? | | ????????????????????????????????????? | | ????????????????????????????????????? | | ????????????????????????????????????? | | ????????????????????????????????????? | | ????????????????????????????????????? | | ????????????????????????????????????? | +----------------------------------------------------+ Best States ------------- Heat Dissipation 28 Energy Generation 5 Energy Capacity 100 Matter Stores 204 Matter Capacity 300 Sight Range 16 Terrain Scan Density 10 Evasion (%) 50 Offensive Hacking 40 Item Schematics ----------------- Imp. Aluminum Leg | -9/Materials | Extracted Flail | -9/Materials | Extracted VTOL Module | -9/Materials | Extracted Core Shielding | -9/Materials | Extracted Spread Laser | -9/Materials | Extracted Med. Matter Pod | -9/Materials | Extracted Med. Laser | -9/Materials | Extracted Hvy. Hammer | -9/Materials | Extracted Targeting Computer | -9/Materials | Extracted Sml. Laser | -9/Materials | Extracted Med. Battery | -9/Materials | Extracted Imp. Medium Laser | -9/Materials | Extracted Seismic Detector | -9/Materials | Extracted Wheel | -9/Materials | Extracted Robot Schematics ------------------ None Fabricated ------------ Nothing Alien Tech Used ----------------- None Achievements -------------- None Challenges ------------ None Game ------ Seed TitaniumCloakingCutter Manual? 0 Play Time 00:09:58 Cumulative 382.4 hours Start 2024.11.12 @ 18:04:32 End 2024.11.12 @ 18:16:23 Sessions 1 Manual Loads 0 Difficulty Rogue Special Mode None Game No. 181 Rogue 181 Adventurer 0 Explorer 0 Win Type - Total 11 Types 6/1/4/0/0/0/0/0/0 Lore% 86 Gallery% 89 Achievement% 73 Wizard Run 0 Options --------- Layout 0 ASCII 0 Keyboard 0 Movement Mouse Keybinds 0 Fullscreen 2 Font 12/Smallcaps Map View 83x54 Zoom Use 0% Tactical HUD 1 Map Filters NONE Filters NONE Steam 1 RUN: fb521bb6-e932-47ba-bce1-58e3d62582a5